[Event "Late-Titled-Tuesday-Blitz-June-18-2024"]
[Site "Chess.com"]
[Date "2024.06.18"]
[Round "2"]
[White "Levanzovsky"]
[Black "KaydenTroffChess"]
[Result "0-1"]
[WhiteElo "2405"]
[BlackElo "2810"]
[TimeControl "180+1"]
[EndTime "14:18:35 PDT"]
[Termination "KaydenTroffChess won by checkmate"]

1. e4 {[%clk 0:03:00.9]} 1... c5 {[%clk 0:03:00.1]} 2. Nf3 {[%clk 0:02:59.4]}
2... g6 {[%clk 0:03:00.8]} 3. d4 {[%clk 0:02:58.5]} 3... cxd4 {[%clk 0:03:01.7]}
4. Qxd4 {[%clk 0:02:58.2]} 4... Nf6 {[%clk 0:03:01.7]} 5. e5 {[%clk 0:02:58.6]}
5... Nc6 {[%clk 0:03:02.2]} 6. Qa4 {[%clk 0:02:59.3]} 6... Nd5 {[%clk
0:03:02.3]} 7. Qb3 {[%clk 0:03:00.2]} 7... Nc7 {[%clk 0:02:59.1]} 8. Ng5 {[%clk
0:03:00.4]} 8... Ne6 {[%clk 0:02:58.8]} 9. Nxe6 {[%clk 0:03:00.9]} 9... dxe6
{[%clk 0:02:58.4]} 10. f4 {[%clk 0:03:01.8]} 10... Bg7 {[%clk 0:02:58.3]} 11.
Be3 {[%clk 0:03:02.1]} 11... O-O {[%clk 0:02:58.5]} 12. Nd2 {[%clk 0:03:02.1]}
12... f6 {[%clk 0:02:58.9]} 13. O-O-O {[%clk 0:02:53.4]} 13... fxe5 {[%clk
0:02:57.8]} 14. Bc4 {[%clk 0:02:53.2]} 14... exf4 {[%clk 0:02:53.9]} 15. Bc5
{[%clk 0:02:49.8]} 15... Kh8 {[%clk 0:02:48]} 16. Nf3 {[%clk 0:02:45.9]} 16...
Qa5 {[%clk 0:02:45.8]} 17. Ba3 {[%clk 0:02:41.4]} 17... e5 {[%clk 0:02:36.2]}
18. Ng5 {[%clk 0:02:38.5]} 18... Nd4 {[%clk 0:02:33.2]} 19. Rxd4 {[%clk
0:02:36.7]} 19... exd4 {[%clk 0:02:33.2]} 20. Bxe7 {[%clk 0:02:36.8]} 20... f3
{[%clk 0:02:20.5]} 21. gxf3 {[%clk 0:02:15]} 21... Qe5 {[%clk 0:02:13.9]} 22.
Qa3 {[%clk 0:01:52.1]} 22... Bd7 {[%clk 0:01:38.7]} 23. h4 {[%clk 0:01:49.2]}
23... d3 {[%clk 0:00:55.5]} 24. cxd3 {[%clk 0:01:13.8]} 24... Rf5 {[%clk
0:00:38.9]} 25. Qb4 {[%clk 0:00:54.7]} 25... b5 {[%clk 0:00:31]} 26. Bf7 {[%clk
0:00:36.9]} 26... a5 {[%clk 0:00:24.3]} 27. Qe4 {[%clk 0:00:22.1]} 27... Qxb2+
{[%clk 0:00:21.5]} 28. Kd1 {[%clk 0:00:22.6]} 28... Rc8 {[%clk 0:00:20.2]} 29.
Bc4 {[%clk 0:00:08.3]} 29... bxc4 {[%clk 0:00:20.4]} 30. h5 {[%clk 0:00:04.2]}
30... cxd3 {[%clk 0:00:19.5]} 31. hxg6 {[%clk 0:00:04.3]} 31... Rc1# {[%clk
0:00:18.9]} 0-1

[Event "Late-Titled-Tuesday-Blitz-June-18-2024"]
[Site "Chess.com"]
[Date "2024.06.18"]
[Round "2"]
[White "MarcoRiehle"]
[Black "rdarruda"]
[Result "1-0"]
[WhiteElo "2814"]
[BlackElo "2559"]
[TimeControl "180+1"]
[EndTime "14:18:40 PDT"]
[Termination "MarcoRiehle won by resignation"]

1. e4 {[%clk 0:02:58.7]} 1... c5 {[%clk 0:02:51]} 2. a3 {[%clk 0:02:58.4]} 2...
e6 {[%clk 0:02:50.3]} 3. b4 {[%clk 0:02:58.4]} 3... cxb4 {[%clk 0:02:50.3]} 4.
axb4 {[%clk 0:02:59.3]} 4... Bxb4 {[%clk 0:02:50.3]} 5. Bb2 {[%clk 0:02:59.8]}
5... Nf6 {[%clk 0:02:48]} 6. e5 {[%clk 0:03:00.1]} 6... Nd5 {[%clk 0:02:47.6]}
7. c4 {[%clk 0:03:00.3]} 7... Ne7 {[%clk 0:02:44.8]} 8. Qg4 {[%clk 0:02:59.1]}
8... Nf5 {[%clk 0:02:42.1]} 9. Bd3 {[%clk 0:02:58]} 9... h5 {[%clk 0:02:40.8]}
10. Qf3 {[%clk 0:02:55.8]} 10... g6 {[%clk 0:02:36.2]} 11. Nc3 {[%clk
0:02:52.3]} 11... Nc6 {[%clk 0:02:34.4]} 12. Ne4 {[%clk 0:02:50.2]} 12... Be7
{[%clk 0:02:29.6]} 13. Ne2 {[%clk 0:02:45.6]} 13... O-O {[%clk 0:02:25]} 14. g4
{[%clk 0:02:42]} 14... hxg4 {[%clk 0:02:19.7]} 15. Qxg4 {[%clk 0:02:42.9]} 15...
d6 {[%clk 0:02:18.6]} 16. exd6 {[%clk 0:02:41]} 16... Bh4 {[%clk 0:01:46.5]} 17.
Nf4 {[%clk 0:02:28.5]} 17... e5 {[%clk 0:01:19.7]} 18. Nxg6 {[%clk 0:02:23.8]}
18... fxg6 {[%clk 0:01:19.4]} 19. Qxg6+ {[%clk 0:02:24.1]} 19... Ng7 {[%clk
0:01:15.8]} 20. Rg1 {[%clk 0:02:22]} 20... Rf7 {[%clk 0:01:06.8]} 21. Nf6+
{[%clk 0:02:03.1]} 21... Kf8 {[%clk 0:00:47.4]} 22. Qh7 {[%clk 0:01:42.7]} 22...
Qxd6 {[%clk 0:00:43.7]} 23. Qh8+ {[%clk 0:01:35.4]} 23... Ke7 {[%clk 0:00:43.5]}
24. Ng8+ {[%clk 0:01:33.7]} 24... Kd7 {[%clk 0:00:33.7]} 25. Rxg7 {[%clk
0:01:26.7]} 25... Rxg7 {[%clk 0:00:32]} 26. Qxg7+ {[%clk 0:01:26.2]} 26... Be7
{[%clk 0:00:29.1]} 27. Nxe7 {[%clk 0:01:18.5]} 27... Qxe7 {[%clk 0:00:27.4]} 28.
Qxe7+ {[%clk 0:01:16.8]} 28... Kxe7 {[%clk 0:00:25.6]} 29. Be4 {[%clk
0:01:15.3]} 29... Nd4 {[%clk 0:00:19]} 30. Bxd4 {[%clk 0:01:15.2]} 30... exd4
{[%clk 0:00:19.9]} 31. Ke2 {[%clk 0:01:13.8]} 31... Kd6 {[%clk 0:00:19.8]} 32.
f4 {[%clk 0:01:13.6]} 32... a5 {[%clk 0:00:18.1]} 33. Kd3 {[%clk 0:01:11.5]}
33... Kc5 {[%clk 0:00:18.1]} 34. Rb1 {[%clk 0:01:11.9]} 34... a4 {[%clk
0:00:16.6]} 35. Bxb7 {[%clk 0:01:10.7]} 35... Bxb7 {[%clk 0:00:15.9]} 36. Rxb7
{[%clk 0:01:10.6]} 36... a3 {[%clk 0:00:16.8]} 37. Rb5+ {[%clk 0:01:09.5]} 37...
Kc6 {[%clk 0:00:16.5]} 38. Rb1 {[%clk 0:01:10.1]} 38... a2 {[%clk 0:00:16.9]}
39. Ra1 {[%clk 0:01:10.5]} 39... Kc5 {[%clk 0:00:17.8]} 40. Kc2 {[%clk
0:01:07.4]} 40... Kxc4 {[%clk 0:00:14.7]} 41. d3+ {[%clk 0:01:07.9]} 41... Kb4
{[%clk 0:00:14.7]} 42. Kb2 {[%clk 0:01:07.8]} 42... Rf8 {[%clk 0:00:14.8]} 43.
Rf1 {[%clk 0:01:03.7]} 43... Ra8 {[%clk 0:00:12.2]} 44. f5 {[%clk 0:00:59]}
44... Ra6 {[%clk 0:00:11.4]} 45. h4 {[%clk 0:00:56.9]} 45... a1=Q+ {[%clk
0:00:11]} 46. Rxa1 {[%clk 0:00:56.5]} 46... Rf6 {[%clk 0:00:09.6]} 47. Rf1
{[%clk 0:00:55.5]} 1-0

[Event "Late-Titled-Tuesday-Blitz-June-18-2024"]
[Site "Chess.com"]
[Date "2024.06.18"]
[Round "2"]
[White "CSB7"]
[Black "s-dshubin"]
[Result "1-0"]
[WhiteElo "2764"]
[BlackElo "2400"]
[TimeControl "180+1"]
[EndTime "14:18:40 PDT"]
[Termination "CSB7 won by checkmate"]

1. e4 {[%clk 0:02:59.7]} 1... e6 {[%clk 0:02:59.9]} 2. d4 {[%clk 0:02:59.3]}
2... d5 {[%clk 0:03:00.8]} 3. e5 {[%clk 0:02:59.2]} 3... c5 {[%clk 0:03:00.1]}
4. c3 {[%clk 0:02:59.4]} 4... Qb6 {[%clk 0:03:00.6]} 5. Nf3 {[%clk 0:02:59]}
5... Bd7 {[%clk 0:03:01.1]} 6. Bd3 {[%clk 0:02:52.9]} 6... Nc6 {[%clk
0:02:58.3]} 7. O-O {[%clk 0:02:51]} 7... cxd4 {[%clk 0:02:57.1]} 8. Re1 {[%clk
0:02:44.7]} 8... Nh6 {[%clk 0:02:35.8]} 9. c4 {[%clk 0:02:35]} 9... dxc4 {[%clk
0:02:30.3]} 10. Bxc4 {[%clk 0:02:35.9]} 10... Be7 {[%clk 0:02:21]} 11. a3 {[%clk
0:02:30.1]} 11... Nf5 {[%clk 0:02:20]} 12. Bd3 {[%clk 0:02:27.1]} 12... Nh4
{[%clk 0:02:12.6]} 13. Nxh4 {[%clk 0:02:03.2]} 13... Bxh4 {[%clk 0:02:13.5]} 14.
Qg4 {[%clk 0:02:03.6]} 14... Be7 {[%clk 0:01:58.4]} 15. Qxg7 {[%clk 0:02:01.8]}
15... O-O-O {[%clk 0:01:58.2]} 16. Qxf7 {[%clk 0:01:47.8]} 16... Nxe5 {[%clk
0:01:24.4]} 17. Rxe5 {[%clk 0:01:38.1]} 17... Bd6 {[%clk 0:01:08.8]} 18. Re1
{[%clk 0:01:28.8]} 18... Rdf8 {[%clk 0:01:06.7]} 19. Qh5 {[%clk 0:01:26.3]}
19... Rhg8 {[%clk 0:01:01.5]} 20. Nd2 {[%clk 0:01:22]} 20... Bc6 {[%clk
0:00:58]} 21. Ne4 {[%clk 0:01:21.9]} 21... Bb8 {[%clk 0:00:51]} 22. Qe2 {[%clk
0:01:03.2]} 22... Qc7 {[%clk 0:00:45.9]} 23. g3 {[%clk 0:01:03.3]} 23... Qe5
{[%clk 0:00:36.2]} 24. Bd2 {[%clk 0:01:00.7]} 24... Qd5 {[%clk 0:00:36]} 25.
Rac1 {[%clk 0:00:59.4]} 25... h5 {[%clk 0:00:31.1]} 26. b4 {[%clk 0:00:53.8]}
26... h4 {[%clk 0:00:30.5]} 27. b5 {[%clk 0:00:51.8]} 27... hxg3 {[%clk
0:00:28.1]} 28. hxg3 {[%clk 0:00:44.6]} 28... Rxf2 {[%clk 0:00:24.4]} 29. Qxf2
{[%clk 0:00:35.6]} 29... Bxg3 {[%clk 0:00:24]} 30. Rxc6+ {[%clk 0:00:32.9]}
30... bxc6 {[%clk 0:00:22.2]} 31. Nxg3 {[%clk 0:00:32.6]} 31... cxb5 {[%clk
0:00:18.9]} 32. Be4 {[%clk 0:00:27.1]} 32... Qb3 {[%clk 0:00:17.4]} 33. Rc1+
{[%clk 0:00:27]} 33... Kd7 {[%clk 0:00:15.7]} 34. Qf7+ {[%clk 0:00:25.4]} 34...
Kd6 {[%clk 0:00:15.3]} 35. Bf4+ {[%clk 0:00:24.8]} 35... e5 {[%clk 0:00:14.2]}
36. Rc6# {[%clk 0:00:25.5]} 1-0

[Event "Late-Titled-Tuesday-Blitz-June-18-2024"]
[Site "Chess.com"]
[Date "2024.06.18"]
[Round "2"]
[White "newyorkmouse"]
[Black "Igor_Lysyj"]
[Result "1/2-1/2"]
[WhiteElo "2584"]
[BlackElo "2843"]
[TimeControl "180+1"]
[EndTime "14:18:41 PDT"]
[Termination "Game drawn by agreement"]

1. a3 {[%clk 0:03:00.9]} 1... d5 {[%clk 0:02:58.9]} 2. Nf3 {[%clk 0:02:58.2]}
2... Nf6 {[%clk 0:02:58.1]} 3. c4 {[%clk 0:02:57.3]} 3... e6 {[%clk 0:02:57.5]}
4. g3 {[%clk 0:02:55.3]} 4... Be7 {[%clk 0:02:56.9]} 5. Bg2 {[%clk 0:02:54.6]}
5... O-O {[%clk 0:02:57.1]} 6. O-O {[%clk 0:02:54.7]} 6... dxc4 {[%clk
0:02:51.5]} 7. Qa4 {[%clk 0:02:53.4]} 7... a6 {[%clk 0:02:46.1]} 8. Qxc4 {[%clk
0:02:51.4]} 8... b5 {[%clk 0:02:46.4]} 9. Qc2 {[%clk 0:02:52]} 9... Bb7 {[%clk
0:02:46.7]} 10. b3 {[%clk 0:02:51.5]} 10... c5 {[%clk 0:02:43.1]} 11. Bb2 {[%clk
0:02:51.4]} 11... Nbd7 {[%clk 0:02:41.6]} 12. d3 {[%clk 0:02:51.4]} 12... Rc8
{[%clk 0:02:39.9]} 13. Nbd2 {[%clk 0:02:51.2]} 13... Qb6 {[%clk 0:02:37.1]} 14.
Rac1 {[%clk 0:02:50.5]} 14... Rfd8 {[%clk 0:02:36.5]} 15. Qb1 {[%clk 0:02:50.2]}
15... Ne8 {[%clk 0:02:34.1]} 16. Qa1 {[%clk 0:02:49.8]} 16... Bf6 {[%clk
0:02:34.2]} 17. Rc2 {[%clk 0:02:49.4]} 17... Bxb2 {[%clk 0:02:30.8]} 18. Qxb2
{[%clk 0:02:50.3]} 18... Rc7 {[%clk 0:02:26.7]} 19. Rfc1 {[%clk 0:02:50.2]}
19... Rdc8 {[%clk 0:02:27.2]} 20. Nf1 {[%clk 0:02:38.2]} 20... h6 {[%clk
0:02:25.6]} 21. Ne3 {[%clk 0:02:38.1]} 21... Nef6 {[%clk 0:02:22.1]} 22. b4
{[%clk 0:02:34]} 22... Nd5 {[%clk 0:02:05.9]} 23. Nxd5 {[%clk 0:02:24]} 23...
Bxd5 {[%clk 0:02:05.7]} 24. Ne5 {[%clk 0:02:22.9]} 24... Nxe5 {[%clk 0:01:45.1]}
25. Qxe5 {[%clk 0:02:23.8]} 25... Bxg2 {[%clk 0:01:40.9]} 26. Kxg2 {[%clk
0:02:20.6]} 26... c4 {[%clk 0:01:39.8]} 27. dxc4 {[%clk 0:02:04.6]} 27... Rxc4
{[%clk 0:01:39.4]} 28. Rxc4 {[%clk 0:01:50.4]} 28... bxc4 {[%clk 0:01:36.6]} 29.
Rc3 {[%clk 0:01:37]} 29... Qb5 {[%clk 0:01:35.9]} 30. Qd4 {[%clk 0:01:27.3]}
30... h5 {[%clk 0:01:26.7]} 31. f3 {[%clk 0:01:25.3]} 31... g6 {[%clk
0:01:19.1]} 32. Kf2 {[%clk 0:01:23]} 32... Qc6 {[%clk 0:01:08.3]} 33. e4 {[%clk
0:01:19.7]} 33... Qb5 {[%clk 0:01:03.7]} 34. Ke3 {[%clk 0:01:17.6]} 34... a5
{[%clk 0:00:59.3]} 35. bxa5 {[%clk 0:01:12.4]} 35... Qxa5 {[%clk 0:00:59.5]} 36.
Rxc4 {[%clk 0:01:02.1]} 36... Qxa3+ {[%clk 0:00:50]} 37. Qd3 {[%clk 0:00:49.7]}
37... Qa7+ {[%clk 0:00:48.7]} 38. Qd4 {[%clk 0:00:48.7]} 38... Qb8 {[%clk
0:00:30.8]} 39. Rxc8+ {[%clk 0:00:47.5]} 39... Qxc8 {[%clk 0:00:31]} 40. Kf2
{[%clk 0:00:42]} 40... Qc2+ {[%clk 0:00:28.4]} 41. Kg1 {[%clk 0:00:42.1]} 41...
Qc7 {[%clk 0:00:27]} 42. Qf6 {[%clk 0:00:40.6]} 42... Qd6 {[%clk 0:00:23.7]} 43.
Kg2 {[%clk 0:00:40.4]} 43... Qd2+ {[%clk 0:00:23.2]} 44. Kg1 {[%clk 0:00:40.2]}
44... Qd1+ {[%clk 0:00:21.6]} 45. Kg2 {[%clk 0:00:40.3]} 45... Qe2+ {[%clk
0:00:20.9]} 46. Kg1 {[%clk 0:00:39.7]} 46... Qe1+ {[%clk 0:00:18.9]} 47. Kg2
{[%clk 0:00:40.2]} 47... Qe2+ {[%clk 0:00:17.3]} 1/2-1/2

[Event "Late-Titled-Tuesday-Blitz-June-18-2024"]
[Site "Chess.com"]
[Date "2024.06.18"]
[Round "2"]
[White "carloseduar100"]
[Black "Romkachess"]
[Result "0-1"]
[WhiteElo "2256"]
[BlackElo "2498"]
[TimeControl "180+1"]
[EndTime "14:18:42 PDT"]
[Termination "Romkachess won on time"]

1. d4 {[%clk 0:03:00.9]} 1... Nf6 {[%clk 0:02:56]} 2. Bg5 {[%clk 0:02:59.9]}
2... Ne4 {[%clk 0:02:53.2]} 3. h4 {[%clk 0:02:59]} 3... c5 {[%clk 0:02:44.3]} 4.
d5 {[%clk 0:02:58.4]} 4... h6 {[%clk 0:02:31.6]} 5. Bf4 {[%clk 0:02:57.6]} 5...
d6 {[%clk 0:02:26.4]} 6. Nd2 {[%clk 0:02:57.3]} 6... Nxd2 {[%clk 0:02:26.4]} 7.
Qxd2 {[%clk 0:02:57.4]} 7... Bf5 {[%clk 0:02:26.2]} 8. Nf3 {[%clk 0:02:54]} 8...
Nd7 {[%clk 0:02:24.4]} 9. e3 {[%clk 0:02:53.3]} 9... a6 {[%clk 0:02:22.3]} 10.
Bd3 {[%clk 0:02:52.9]} 10... Bxd3 {[%clk 0:02:20.8]} 11. cxd3 {[%clk 0:02:53.5]}
11... g6 {[%clk 0:02:17.4]} 12. e4 {[%clk 0:02:53.7]} 12... Bg7 {[%clk
0:02:17.1]} 13. O-O {[%clk 0:02:53.4]} 13... Qb6 {[%clk 0:02:10.4]} 14. Rab1
{[%clk 0:02:47]} 14... Nf6 {[%clk 0:02:01.3]} 15. b4 {[%clk 0:02:46.5]} 15...
cxb4 {[%clk 0:01:39.7]} 16. Rxb4 {[%clk 0:02:45.7]} 16... Qc7 {[%clk 0:01:35.2]}
17. Rc1 {[%clk 0:02:44.8]} 17... Qd7 {[%clk 0:01:35.3]} 18. a4 {[%clk
0:02:33.2]} 18... Rc8 {[%clk 0:01:28.4]} 19. Rcb1 {[%clk 0:02:32.5]} 19... Rc7
{[%clk 0:01:20.9]} 20. a5 {[%clk 0:02:16.7]} 20... Ng4 {[%clk 0:01:12.1]} 21. d4
{[%clk 0:02:09.1]} 21... O-O {[%clk 0:01:04]} 22. e5 {[%clk 0:02:00.3]} 22...
Qf5 {[%clk 0:00:45.4]} 23. Rxb7 {[%clk 0:01:38.2]} 23... Rc2 {[%clk 0:00:37.3]}
24. exd6 {[%clk 0:00:39.2]} 24... exd6 {[%clk 0:00:30.6]} 25. Qxc2 {[%clk
0:00:21.9]} 25... Qxc2 {[%clk 0:00:29]} 26. R7b2 {[%clk 0:00:22.6]} 26... Qe4
{[%clk 0:00:27.9]} 27. Bxd6 {[%clk 0:00:22.8]} 27... Rc8 {[%clk 0:00:19.3]} 28.
Rb8 {[%clk 0:00:21.7]} 28... Rxb8 {[%clk 0:00:17.2]} 29. Rxb8+ {[%clk
0:00:22.6]} 29... Kh7 {[%clk 0:00:17.8]} 30. Rb6 {[%clk 0:00:17]} 30... Qxd5
{[%clk 0:00:16.5]} 31. Rxa6 {[%clk 0:00:16.4]} 31... Bxd4 {[%clk 0:00:17.1]} 32.
Nxd4 {[%clk 0:00:14.9]} 32... Qxd4 {[%clk 0:00:18]} 0-1

[Event "Late-Titled-Tuesday-Blitz-June-18-2024"]
[Site "Chess.com"]
[Date "2024.06.18"]
[Round "2"]
[White "andrzej"]
[Black "BillCoe"]
[Result "1-0"]
[WhiteElo "2450"]
[BlackElo "2079"]
[TimeControl "180+1"]
[EndTime "14:18:43 PDT"]
[Termination "andrzej won by resignation"]

1. d4 {[%clk 0:03:00.9]} 1... d5 {[%clk 0:02:59.7]} 2. Bf4 {[%clk 0:03:00.3]}
2... e6 {[%clk 0:03:00.2]} 3. e3 {[%clk 0:02:59.9]} 3... Nf6 {[%clk 0:03:00.8]}
4. Nf3 {[%clk 0:02:54.4]} 4... Bd6 {[%clk 0:03:00.7]} 5. Bg3 {[%clk 0:02:54.3]}
5... O-O {[%clk 0:02:59.9]} 6. Nbd2 {[%clk 0:02:54.5]} 6... c5 {[%clk
0:02:59.9]} 7. c3 {[%clk 0:02:54.1]} 7... b6 {[%clk 0:02:59.6]} 8. Ne5 {[%clk
0:02:48.5]} 8... Qc7 {[%clk 0:02:53.6]} 9. f4 {[%clk 0:02:45.3]} 9... a5 {[%clk
0:02:49.7]} 10. Bd3 {[%clk 0:02:42.2]} 10... Ba6 {[%clk 0:02:47.6]} 11. Bc2
{[%clk 0:02:42.7]} 11... Nbd7 {[%clk 0:02:42]} 12. Qf3 {[%clk 0:02:42.1]} 12...
cxd4 {[%clk 0:02:39]} 13. exd4 {[%clk 0:02:41.8]} 13... Rac8 {[%clk 0:02:33.6]}
14. a4 {[%clk 0:02:27.8]} 14... Rfe8 {[%clk 0:02:27.9]} 15. Kf2 {[%clk
0:02:26.8]} 15... Nf8 {[%clk 0:02:27.8]} 16. Bh4 {[%clk 0:02:22.7]} 16... Be7
{[%clk 0:02:25.7]} 17. Bxf6 {[%clk 0:02:20.4]} 17... Bxf6 {[%clk 0:02:25.2]} 18.
Rhe1 {[%clk 0:02:19.3]} 18... Ng6 {[%clk 0:02:22.4]} 19. Kg1 {[%clk 0:02:09.2]}
19... b5 {[%clk 0:02:05.3]} 20. axb5 {[%clk 0:02:08.2]} 20... Bxb5 {[%clk
0:02:06.2]} 21. Qh5 {[%clk 0:02:08]} 21... Rb8 {[%clk 0:01:49.2]} 22. Ndf3
{[%clk 0:02:05.3]} 22... Bc4 {[%clk 0:01:44.4]} 23. Reb1 {[%clk 0:01:53.1]}
23... Bb3 {[%clk 0:01:38.3]} 24. Bd3 {[%clk 0:01:46.8]} 24... Bc4 {[%clk
0:01:36.5]} 25. Bc2 {[%clk 0:01:25.6]} 25... Bb3 {[%clk 0:01:36.4]} 26. Bxb3
{[%clk 0:01:25.4]} 26... Rxb3 {[%clk 0:01:35.5]} 27. g3 {[%clk 0:01:16.6]} 27...
Reb8 {[%clk 0:01:33.1]} 28. Ng4 {[%clk 0:01:00.5]} 28... Be7 {[%clk 0:01:26.3]}
29. f5 {[%clk 0:00:54.5]} 29... exf5 {[%clk 0:01:16.8]} 30. Qxf5 {[%clk
0:00:55.4]} 30... Rxb2 {[%clk 0:01:12.7]} 31. Rf1 {[%clk 0:00:55.7]} 31... Qxc3
{[%clk 0:00:59.4]} 32. Rac1 {[%clk 0:00:52.2]} 32... Qb4 {[%clk 0:00:27.5]} 33.
Kh1 {[%clk 0:00:48.3]} 33... Rf8 {[%clk 0:00:24]} 34. Qxd5 {[%clk 0:00:46.4]}
34... Rd8 {[%clk 0:00:19.3]} 35. Qe4 {[%clk 0:00:36.5]} 35... Bf8 {[%clk
0:00:19.2]} 36. Rcd1 {[%clk 0:00:29.9]} 36... a4 {[%clk 0:00:16.5]} 37. Ng5
{[%clk 0:00:29.1]} 37... f6 {[%clk 0:00:08.6]} 38. Qe6+ {[%clk 0:00:27.8]} 38...
Kh8 {[%clk 0:00:05.6]} 39. Nf7+ {[%clk 0:00:28.2]} 1-0

[Event "Late-Titled-Tuesday-Blitz-June-18-2024"]
[Site "Chess.com"]
[Date "2024.06.18"]
[Round "2"]
[White "Pitomina"]
[Black "imdarealist"]
[Result "1-0"]
[WhiteElo "2501"]
[BlackElo "2261"]
[TimeControl "180+1"]
[EndTime "14:18:44 PDT"]
[Termination "Pitomina won on time"]

1. g4 {[%clk 0:02:54.5]} 1... e5 {[%clk 0:02:55.2]} 2. Bg2 {[%clk 0:02:52.7]}
2... Ne7 {[%clk 0:02:54.7]} 3. h4 {[%clk 0:02:41.2]} 3... d5 {[%clk 0:02:47.9]}
4. d3 {[%clk 0:02:40.1]} 4... c6 {[%clk 0:02:40.8]} 5. g5 {[%clk 0:02:39.8]}
5... h5 {[%clk 0:02:15]} 6. Nc3 {[%clk 0:02:25.5]} 6... Ng6 {[%clk 0:02:13.4]}
7. e4 {[%clk 0:02:19.6]} 7... d4 {[%clk 0:02:13.6]} 8. Nce2 {[%clk 0:02:19.5]}
8... c5 {[%clk 0:02:01]} 9. Bh3 {[%clk 0:02:14.9]} 9... Nc6 {[%clk 0:01:57.9]}
10. f4 {[%clk 0:02:13.3]} 10... exf4 {[%clk 0:01:57.1]} 11. Nxf4 {[%clk
0:02:12.3]} 11... Bxh3 {[%clk 0:01:30.4]} 12. Ngxh3 {[%clk 0:02:06.2]} 12... Bd6
{[%clk 0:01:11]} 13. Qe2 {[%clk 0:01:38.5]} 13... Qe7 {[%clk 0:01:03.7]} 14. Nd5
{[%clk 0:01:26.5]} 14... Qd7 {[%clk 0:00:59.1]} 15. Nhf4 {[%clk 0:01:20.8]}
15... Nxf4 {[%clk 0:00:38.6]} 16. Bxf4 {[%clk 0:01:21.7]} 16... O-O-O {[%clk
0:00:31.9]} 17. O-O-O {[%clk 0:01:18.6]} 17... Nb4 {[%clk 0:00:29.6]} 18. Bxd6
{[%clk 0:01:14.9]} 18... Nxd5 {[%clk 0:00:29.8]} 19. exd5 {[%clk 0:01:15.1]}
19... Qxd6 {[%clk 0:00:29.6]} 20. Rhf1 {[%clk 0:01:15.5]} 20... Qxd5 {[%clk
0:00:28.1]} 21. Qf3 {[%clk 0:01:07.4]} 21... Qxa2 {[%clk 0:00:23]} 22. Qxf7
{[%clk 0:01:05.6]} 22... Qa1+ {[%clk 0:00:22.4]} 23. Kd2 {[%clk 0:01:05.7]}
23... Qxb2 {[%clk 0:00:20.1]} 24. Qc4 {[%clk 0:01:01.7]} 24... Qc3+ {[%clk
0:00:14]} 25. Qxc3 {[%clk 0:01:01.6]} 25... dxc3+ {[%clk 0:00:14.9]} 26. Kxc3
{[%clk 0:01:02.4]} 26... Rd4 {[%clk 0:00:14.4]} 27. Ra1 {[%clk 0:00:56.3]} 27...
a6 {[%clk 0:00:13.3]} 28. Rf7 {[%clk 0:00:56.9]} 28... Rxh4 {[%clk 0:00:12.3]}
29. Rb1 {[%clk 0:00:56.1]} 29... b5 {[%clk 0:00:11.9]} 30. Ra1 {[%clk 0:00:55]}
30... Ra4 {[%clk 0:00:05.2]} 31. Re1 {[%clk 0:00:49.3]} 31... h4 {[%clk
0:00:02.3]} 32. g6 {[%clk 0:00:42.3]} 32... h3 {[%clk 0:00:02.3]} 33. Rxg7
{[%clk 0:00:42.4]} 33... h2 {[%clk 0:00:02.6]} 34. Rh7 {[%clk 0:00:40.5]} 34...
Rxh7 {[%clk 0:00:01.5]} 35. gxh7 {[%clk 0:00:41.4]} 35... Rh4 {[%clk 0:00:02]}
36. Re8+ {[%clk 0:00:41.9]} 36... Kc7 {[%clk 0:00:02.4]} 37. h8=Q {[%clk
0:00:42.8]} 37... h1=Q {[%clk 0:00:01.4]} 38. Qe5+ {[%clk 0:00:41.7]} 38... Kc6
{[%clk 0:00:01.5]} 39. Re6+ {[%clk 0:00:38.6]} 1-0